bitfinex-derivatives/quotes_SOLF0:USTF0_20250625
["timestamp","ask_amount","ask_price","bid_price","bid_amount"]
[1750894593714,5.34903612,143.11,143.09,6.9847]
[1750894594013,41.7436,143.12,143.09,6.9847]
[1750894594212,5.34903612,143.11,143.09,6.9847]
[1750894594414,41.7436,143.12,143.09,6.9847]
[1750894594618,5.34898295,143.11,143.09,6.9847]
[1750894594818,6.9841,143.11,143.08,6.985]
[1750894598112,41.7437,143.12,143.09,6.9847]
[1750894598317,5.33281229,143.11,143.09,6.9847]
[1750894598517,41.7437,143.12,143.09,6.9847]
[1750894598720,5.33330423,143.11,143.09,6.9847]
[1750894599019,34.76,143.12,143.04,41.7658]
[1750894599222,5.33437515,143.11,143.04,41.7658]
[1750894599416,34.76,143.12,143.04,41.7658]
[1750894599726,5.33437943,143.11,143.09,6.9844]
[1750894599923,34.76,143.12,143.04,41.7658]
[1750894600121,5.33437943,143.11,143.04,41.7658]
[1750894600317,34.76,143.12,143.04,41.7658]
[1750894600621,5.33605373,143.11,143.04,41.7658]
[1750894600815,34.76,143.12,143.1,6.984]
[1750894601016,6.9825,143.14,143.04,41.7658]
[1750894601222,12.62872157,143.13,143.04,41.7658]
[1750894601423,5.33563585,143.12,143.04,41.7658]
[1750894601626,6.9825,143.14,143.04,41.7658]
[1750894601925,12.62885468,143.13,143.04,41.7658]
[1750894602126,5.33569112,143.12,143.04,41.7658]
[1750894602328,6.9825,143.14,143.04,41.7658]
[1750894602528,12.61667599,143.13,143.04,41.7658]
[1750894602829,6.9825,143.14,143.04,41.7658]
[1750894602830,5.33578182,143.12,143.04,41.7658]
[1750894603029,6.9825,143.14,143.04,41.7658]
[1750894603221,12.62217242,143.13,143.1,6.9838]
[1750894603421,5.341276,143.12,143.1,6.9838]
[1750894603629,6.9825,143.14,143.04,41.7658]
[1750894603824,12.62280054,143.13,143.04,41.7658]
[1750894604022,5.34154084,143.12,143.04,41.7658]
[1750894604223,6.9825,143.14,143.05,62.0]
[1750894604523,5.34121901,143.13,143.1,6.984]
[1750894604714,6.9825,143.14,143.1,6.984]
[1750894604915,7.8262354,143.13,143.1,6.984]
[1750894605118,6.9825,143.14,143.1,6.984]
[1750894605320,5.34121434,143.13,143.1,6.984]
[1750894605520,6.9825,143.14,143.1,6.984]
[1750894605722,7.82614231,143.13,143.11,6.9837]
[1750894605926,6.9825,143.14,143.11,6.9837]
[1750894606228,5.34114844,143.13,143.11,6.9837]
[1750894606429,41.742,143.15,143.11,6.9837]
[1750894606629,25.63661586,143.14,143.11,6.9837]
[1750894606830,5.34063353,143.13,143.11,6.9837]
[1750894607027,6.9824,143.14,143.11,6.9837]
[1750894607229,5.34035579,143.13,143.12,6.9833]
[1750894615337,5.34035579,143.13,143.11,6.9836]
[1750894615633,5.35856204,143.12,143.11,6.9836]
[1750894617828,6.9823,143.14,143.11,6.9836]
[1750894618028,18.71259042,143.13,143.11,6.9836]
[1750894618328,5.35914645,143.12,143.11,6.9836]
[1750894620130,6.9823,143.14,143.11,6.9836]
[1750894620332,5.359049,143.13,143.12,6.9832]
[1750894620835,12.66789317,143.13,143.12,6.9832]
[1750894621632,5.359049,143.13,143.12,6.9832]
[1750894623435,5.359049,143.13,143.11,6.9836]
[1750894623630,41.7423,143.15,143.11,6.9836]
[1750894623831,12.66642598,143.14,143.11,6.9836]
[1750894624035,5.35824297,143.13,143.11,6.9836]
[1750894624332,41.7423,143.15,143.11,6.9836]
[1750894624532,18.70603787,143.14,143.11,6.9836]
[1750894624730,5.35826192,143.13,143.11,6.9836]
[1750894624931,41.7423,143.15,143.11,6.9836]
[1750894625134,18.70603787,143.14,143.11,6.9836]
[1750894625334,5.35826192,143.13,143.11,6.9836]
[1750894625532,41.7423,143.15,143.11,6.9836]
[1750894625742,18.70604385,143.14,143.11,6.9836]
[1750894625932,5.35826369,143.13,143.11,6.9836]
[1750894626245,5.35826369,143.12,143.11,6.9836]
[1750894628637,41.7421,143.15,143.11,6.9836]
[1750894628833,6.04011306,143.14,143.11,6.9836]
[1750894629029,41.7421,143.15,143.11,6.9836]
[1750894629242,6.04454123,143.14,143.11,6.9836]
[1750894629441,41.7421,143.15,143.11,6.9836]
[1750894629642,6.04452079,143.14,143.11,6.9836]
[1750894629834,41.7421,143.15,143.11,6.9836]
[1750894630028,6.04452079,143.14,143.09,7.0595]
[1750894630229,41.7421,143.15,143.09,7.0595]
[1750894630442,6.04445234,143.14,143.11,6.9835]
[1750894630641,41.7421,143.15,143.11,6.9835]
[1750894630836,6.04445234,143.14,143.11,6.9835]
[1750894631037,41.7421,143.15,143.11,6.9835]
[1750894631239,6.04439992,143.14,143.11,6.9835]
[1750894631441,41.7421,143.15,143.11,6.9835]
[1750894631737,6.0444084,143.14,143.11,6.9835]
[1750894631930,41.7421,143.15,143.11,6.9835]
[1750894632135,6.0444084,143.14,143.11,6.9835]
[1750894632336,41.7421,143.15,143.11,6.9835]
[1750894632634,6.0418926,143.14,143.11,6.9835]
[1750894632834,41.7421,143.15,143.11,6.9835]
[1750894633034,6.04186078,143.14,143.11,6.9835]
[1750894633235,41.7421,143.15,143.11,6.9835]
[1750894633543,18.70843102,143.14,143.11,6.9835]
[1750894633743,5.3584028,143.13,143.11,6.9835]
[1750894633946,41.7421,143.15,143.11,6.9835]
[1750894634137,18.71261331,143.14,143.11,6.9835]
[1750894634334,5.3584028,143.13,143.11,6.9835]
[1750894634531,41.7421,143.15,143.11,6.9835]
[1750894634735,18.69983411,143.14,143.11,6.9835]
[1750894634930,5.35843726,143.13,143.11,6.9835]
[1750894635236,5.35843726,143.12,143.11,6.9835]
[1750894636436,6.9825,143.14,143.11,6.9835]
[1750894636635,5.35909719,143.13,143.11,6.9835]
[1750894636836,6.9825,143.14,143.11,6.9835]
[1750894637037,5.35398794,143.13,143.11,6.9835]
[1750894637258,6.9825,143.14,143.11,6.9835]
[1750894637449,5.35451049,143.13,143.11,6.9835]
[1750894637641,6.9825,143.14,143.11,6.9835]
[1750894637841,5.35451049,143.13,143.11,6.9835]
[1750894638040,6.9825,143.14,143.11,6.9835]
[1750894638240,5.35451049,143.13,143.11,6.9835]
[1750894638440,6.9825,143.14,143.11,6.9835]
[1750894638640,12.66912396,143.13,143.11,6.9835]
[1750894638841,5.36070796,143.12,143.11,6.9835]
[1750894640252,6.9825,143.14,143.11,6.9835]
[1750894640444,12.67299376,143.13,143.11,6.9835]
[1750894640645,6.9825,143.14,143.11,6.9835]
[1750894640646,5.3623454,143.12,143.11,6.9835]
[1750894643950,5.3623454,143.12,143.1,6.9842]
[1750894644150,5.3623454,143.11,143.1,6.9842]
[1750894645150,6.9829,143.13,143.1,6.9842]
[1750894645350,5.3668542,143.12,143.1,6.9842]
[1750894645546,5.3668542,143.11,143.1,6.9842]
[1750894649454,6.9829,143.13,143.1,6.9842]
[1750894649755,5.36165013,143.12,143.11,6.9837]
[1750894650756,41.742,143.15,143.11,6.9837]
[1750894650947,12.6729463,143.14,143.11,6.9837]
[1750894651254,5.36083853,143.13,143.11,6.9837]
[1750894651450,41.742,143.15,143.11,6.9837]
[1750894651650,5.36069698,143.14,143.11,6.9837]
[1750894651851,5.36069698,143.13,143.11,6.9837]
[1750894652147,6.9824,143.14,143.11,6.9837]
[1750894652346,5.3609487,143.13,143.11,6.9837]
[1750894652654,5.3609487,143.12,143.11,6.9837]
[1750894652955,12.6721451,143.12,143.05,34.7]
[1750894653153,34.76,143.15,143.05,34.7]
[1750894653154,18.72339512,143.11,143.05,34.7]
[1750894653456,12.6721451,143.1,143.07,6.9854]
[1750894653656,5.3609487,143.09,143.07,6.9854]
[1750894653953,6.9842,143.11,143.07,6.9854]
[1750894654154,7.84266055,143.1,143.07,6.9854]
[1750894654451,6.9842,143.11,143.07,6.9854]
[1750894654452,5.36028441,143.09,143.07,6.9854]
[1750894654649,6.9842,143.11,143.07,6.9854]
[1750894654852,5.35889225,143.1,143.07,6.9854]
[1750894655154,6.9842,143.11,143.07,6.9854]
[1750894655346,5.35777254,143.1,143.07,6.9854]
[1750894655547,5.41536339,143.09,143.07,6.9854]
[1750894655749,6.9842,143.11,143.08,6.9852]
[1750894655943,5.41498648,143.1,143.05,34.7]
[1750894656150,2.4431,143.14,143.05,34.7]
[1750894656349,18.7685726,143.13,143.06,7.1611]
[1750894656645,18.7685726,143.12,143.06,7.1611]
[1750894656842,5.41489133,143.11,143.06,7.1611]
[1750894657045,2.4431,143.14,143.06,7.1611]
[1750894657256,18.70852346,143.13,143.06,7.1611]
[1750894657458,18.70852346,143.12,143.06,7.1611]
[1750894657651,5.39290646,143.11,143.06,7.1611]
[1750894657954,34.76,143.15,143.11,6.9838]
[1750894658157,18.71402692,143.14,143.11,6.9838]
[1750894658357,12.6817542,143.13,143.11,6.9838]
[1750894658657,5.3982395,143.12,143.11,6.9838]
[1750894664462,5.3982395,143.12,143.07,34.7]
[1750894664763,53.43148785,143.11,143.04,34.7]
[1750894664958,18.73060173,143.1,143.04,34.7]
[1750894665162,12.69212315,143.09,143.05,6.9865]
[1750894665361,12.68579211,143.08,143.01,34.7]
[1750894665554,5.3982395,143.07,143.01,34.7]
[1750894665758,5.3982395,143.06,143.03,6.9874]
[1750894665963,6.9861,143.07,143.01,34.7]
[1750894666660,6.985,143.09,143.01,34.7]
[1750894666858,5.39474004,143.08,143.01,34.7]
[1750894667160,13.01600953,143.1,143.01,169.34]
[1750894667457,5.39427421,143.09,143.01,169.34]
[1750894667656,6.9844,143.1,143.01,169.34]
[1750894667863,6.9844,143.1,143.07,6.9855]
[1750894668056,41.684,143.11,143.07,6.9855]
[1750894668253,5.39392589,143.1,143.01,169.34]
[1750894668458,41.684,143.11,143.08,6.9851]
[1750894668662,5.39416048,143.1,143.05,34.7]
[1750894668853,41.684,143.11,143.07,6.9854]
[1750894669056,5.39387956,143.1,143.07,6.9854]
[1750894669359,41.684,143.11,143.07,6.9854]
[1750894669554,5.39345294,143.1,143.07,6.9854]
[1750894669754,41.684,143.11,143.07,6.9854]
[1750894669963,5.39313367,143.1,143.07,6.9854]
[1750894670264,41.684,143.11,143.07,6.9854]
[1750894670564,5.3928343,143.1,143.08,6.9852]
[1750894670761,41.684,143.11,143.08,6.9852]
[1750894670963,5.39283763,143.1,143.08,6.9852]
[1750894671165,41.684,143.11,143.08,6.9852]
[1750894671362,5.39252487,143.1,143.08,6.9852]
[1750894671565,41.684,143.11,143.08,6.9852]
[1750894671766,5.39283066,143.1,143.08,6.9852]
[1750894671967,41.684,143.11,143.08,6.9852]
[1750894672161,5.392834,143.1,143.08,6.9852]
[1750894672361,41.684,143.11,143.08,6.9852]
[1750894672558,5.39254257,143.1,143.08,6.9852]
[1750894672958,5.39254257,143.1,143.05,34.7]
[1750894673165,34.7,143.11,143.05,34.7]
[1750894673564,2.2646,143.18,143.05,34.7]
[1750894673870,6.01195652,143.15,143.06,7.2967]
[1750894674065,6.9819,143.15,143.11,6.9833]
[1750894674462,34.7,143.17,143.11,6.9833]
[1750894674664,6.01710039,143.15,143.06,41.9967]
[1750894674861,34.7,143.17,143.06,41.9967]
[1750894674862,6.01710039,143.14,143.06,41.9967]
[1750894675066,40.71710039,143.13,143.06,41.9967]
[1750894675271,6.9836,143.12,143.08,6.9849]
[1750894678066,6.9836,143.12,143.06,41.9967]
[1750894678067,6.9836,143.12,143.09,6.9846]
[1750894678263,41.683,143.13,143.09,6.9846]
[1750894678463,41.683,143.13,143.06,41.9967]
[1750894678865,34.7,143.13,143.06,41.9967]
[1750894679264,6.9825,143.14,143.06,41.9967]
[1750894680169,6.9825,143.14,143.11,6.9837]
[1750894681274,152.96609073,143.16,143.1,6.984]
[1750894681474,6.01744982,143.15,143.06,41.9967]
[1750894681771,152.96609073,143.16,143.06,41.9967]
[1750894681965,12.99991949,143.15,143.12,6.9833]
[1750894682165,6.9821,143.15,143.12,6.9833]
[1750894687173,6.9805,143.18,143.1,34.66]
[1750894687381,34.66,143.19,143.11,36.925]
[1750894687575,6.9823,143.15,143.11,6.9835]
[1750894687776,6.9823,143.15,143.08,34.66]
[1750894688080,7.0366,143.18,143.08,34.66]
[1750894688278,6.0260725,143.17,143.12,6.9829]
[1750894688480,6.0260725,143.16,143.12,6.9829]
[1750894688781,7.0366,143.18,143.12,6.9829]
[1750894688971,6.9817,143.16,143.13,6.9827]
[1750894689578,6.9817,143.16,143.12,6.9831]
[1750894689968,6.9819,143.15,143.12,6.9831]
[1750894690380,5.39127572,143.14,143.12,6.9831]
[1750894690675,6.9819,143.15,143.12,6.9831]
[1750894690877,12.4037704,143.14,143.11,6.9836]
[1750894691080,5.4214704,143.13,143.11,6.9836]
[1750894691280,13.31603423,143.17,143.11,6.9836]
[1750894691577,18.7371482,143.16,143.11,6.9836]
[1750894691779,7.0366,143.18,143.08,34.66]
[1750894691780,19.68573731,143.15,143.12,6.9833]
[1750894691979,5.42111397,143.14,143.12,6.9833]
[1750894692179,6.9821,143.15,143.12,6.9833]
[1750894692375,5.42120451,143.14,143.12,6.9833]
[1750894692677,6.9821,143.15,143.12,6.9833]
[1750894692873,5.42668671,143.14,143.12,6.9833]
[1750894693077,6.9821,143.15,143.12,6.9833]
[1750894693275,5.4264864,143.14,143.12,6.9833]
[1750894693476,6.9821,143.15,143.12,6.9833]
[1750894693773,5.42649768,143.14,143.12,6.9833]
[1750894693977,6.9821,143.15,143.12,6.9833]
[1750894694277,5.42634973,143.14,143.12,6.9833]
[1750894694478,6.9821,143.15,143.12,6.9833]
[1750894694676,5.42585345,143.14,143.12,6.9833]
[1750894694876,6.9821,143.15,143.12,6.9833]
[1750894695080,5.42585345,143.14,143.12,6.9833]
[1750894695276,6.9821,143.15,143.12,6.9833]
[1750894695574,5.4257418,143.14,143.12,6.9833]
[1750894695874,6.9821,143.15,143.12,6.9833]
[1750894696073,5.4257418,143.14,143.12,6.9833]
[1750894696278,6.9821,143.15,143.12,6.9833]
[1750894696477,5.4259988,143.14,143.12,6.9833]
[1750894696677,6.9821,143.15,143.12,6.9833]
[1750894696878,5.4259988,143.14,143.12,6.9833]
[1750894697178,6.9821,143.15,143.12,6.9833]
[1750894697367,5.42456759,143.14,143.12,6.9833]
[1750894697572,6.9821,143.15,143.12,6.9833]
[1750894697771,5.42454907,143.14,143.12,6.9833]
[1750894697975,6.9821,143.15,143.12,6.9833]
[1750894698180,5.42385267,143.14,143.12,6.9833]
[1750894698380,6.9821,143.15,143.12,6.9833]
[1750894698683,5.42385707,143.14,143.12,6.9833]
[1750894698879,6.9821,143.15,143.12,6.9833]
[1750894699080,5.42385863,143.14,143.12,6.9833]
[1750894699284,6.9821,143.15,143.12,6.9833]
[1750894699482,5.42390458,143.14,143.12,6.9833]
[1750894699682,6.9821,143.15,143.12,6.9833]
[1750894699981,5.42390605,143.14,143.12,6.9833]
[1750894700182,6.9821,143.15,143.12,6.9833]
[1750894700383,5.42398343,143.14,143.12,6.9833]
[1750894700580,6.9821,143.15,143.12,6.9833]
[1750894700781,5.42397283,143.14,143.08,34.66]
[1750894700982,34.66,143.16,143.08,34.66]
[1750894701183,5.42397282,143.15,143.08,34.66]
[1750894701482,34.66,143.16,143.13,6.9823]
[1750894701782,5.42404023,143.15,143.08,34.66]
[1750894701984,34.66,143.16,143.14,6.982]
[1750894702381,6.9812,143.17,143.14,6.982]
[1750894702687,5.41796576,143.16,143.08,34.66]
[1750894702888,5.41796576,143.15,143.08,34.66]
[1750894703082,34.66,143.19,143.08,34.66]
[1750894703387,6.9817,143.16,143.08,34.66]
[1750894703589,5.41739762,143.15,143.08,34.66]
[1750894703787,6.9817,143.16,143.08,34.66]
[1750894703988,5.41718422,143.15,143.08,34.66]
[1750894704289,6.9817,143.16,143.08,34.66]
[1750894704589,5.42193034,143.15,143.08,34.66]
[1750894704791,6.9817,143.16,143.08,34.66]
[1750894705087,5.42193034,143.15,143.08,34.66]
[1750894705280,6.9817,143.16,143.08,34.66]
[1750894705477,5.42066739,143.15,143.08,34.66]
[1750894705779,6.9817,143.16,143.08,34.66]
[1750894705981,5.42095192,143.15,143.08,34.66]
[1750894706181,6.9817,143.16,143.08,34.66]
[1750894706388,5.42240514,143.15,143.13,6.9825]
[1750894706588,6.9817,143.16,143.13,6.9825]
[1750894707090,12.40382336,143.15,143.08,34.66]
[1750894707277,6.9819,143.15,143.08,34.66]
[1750894707479,6.9819,143.15,143.12,6.9829]
[1750894708082,6.9816,143.16,143.13,6.9828]
[1750894708279,5.4274399,143.15,143.13,6.9828]
[1750894708492,6.9816,143.16,143.13,6.9828]
[1750894708684,5.42742089,143.15,143.13,6.9828]
[1750894708884,6.9816,143.16,143.13,6.9828]
[1750894709080,5.42742089,143.15,143.13,6.9828]
[1750894709278,6.9816,143.16,143.13,6.9828]
[1750894711589,5.42973992,143.15,143.13,6.9828]
[1750894711784,6.9816,143.16,143.13,6.9828]
[1750894712488,6.981,143.17,143.14,6.982]
[1750894712683,5.43152663,143.16,143.14,6.982]
[1750894712888,6.981,143.17,143.14,6.982]
[1750894713095,5.43152663,143.16,143.15,6.9818]
[1750894714592,13.33120493,143.18,143.15,6.9818]
[1750894714796,5.43075704,143.17,143.15,6.9818]
[1750894714990,41.64,143.19,143.15,6.9818]
[1750894715192,5.43074798,143.18,143.15,6.9818]
[1750894715492,41.64,143.19,143.12,34.64]
[1750894715493,34.66,143.19,143.12,34.64]
[1750894715693,5.43100791,143.18,143.12,34.64]
[1750894715893,5.43100791,143.17,143.12,34.64]
[1750894716096,41.6402,143.19,143.12,34.64]
[1750894716284,5.43185668,143.18,143.12,34.64]
[1750894716489,41.6402,143.19,143.12,34.64]
[1750894716791,5.43079752,143.18,143.12,34.64]
[1750894716995,41.6402,143.19,143.12,34.64]
[1750894717199,5.43079752,143.18,143.12,34.64]
[1750894717396,41.6402,143.19,143.12,34.64]
[1750894717597,5.43081385,143.18,143.16,6.9811]
[1750894717898,34.66,143.19,143.16,6.9811]
[1750894718097,5.43109838,143.18,143.16,6.9811]
[1750894718397,34.66,143.19,143.16,6.9811]
[1750894718697,5.43061095,143.18,143.17,6.9809]
[1750894718994,6.9796,143.2,143.17,6.9809]
[1750894719198,5.43060179,143.19,143.17,6.9809]
[1750894719396,6.9796,143.2,143.17,6.9809]
[1750894719592,5.44573878,143.19,143.17,6.9809]
[1750894719898,6.9796,143.2,143.17,6.9809]
[1750894720088,5.44573878,143.19,143.17,6.9809]
[1750894720287,5.44493401,143.18,143.16,6.981]
[1750894720491,6.9799,143.19,143.16,6.981]
[1750894720697,5.44504089,143.18,143.16,6.981]
[1750894720893,5.44504089,143.17,143.16,6.981]
[1750894721090,6.9799,143.19,143.16,6.981]
[1750894721292,5.46179634,143.18,143.16,6.981]
[1750894721490,6.9799,143.19,143.16,6.981]
[1750894721787,5.46131028,143.18,143.16,6.981]
[1750894721993,6.9799,143.19,143.16,6.981]
[1750894722201,5.46131004,143.18,143.16,6.981]
[1750894722388,6.9799,143.19,143.16,6.981]
[1750894722598,5.46170827,143.18,143.16,6.981]
[1750894722790,6.9799,143.19,143.16,6.981]
[1750894722989,5.46132517,143.18,143.16,6.981]
[1750894723192,6.9799,143.19,143.16,6.981]
[1750894723390,5.46096744,143.18,143.16,6.981]
[1750894723600,6.9799,143.19,143.16,6.981]
[1750894723800,5.46096744,143.18,143.16,6.981]
[1750894724003,6.9799,143.19,143.16,6.981]
[1750894724200,5.46096744,143.18,143.16,6.981]
[1750894724503,6.9799,143.19,143.16,6.981]
[1750894724698,5.46078275,143.18,143.16,6.981]
[1750894724899,6.9799,143.19,143.16,6.981]
[1750894725102,5.46078275,143.18,143.16,6.981]
[1750894725297,6.9799,143.19,143.16,6.981]
[1750894725502,5.4605007,143.18,143.16,6.981]
[1750894725694,6.9799,143.19,143.16,6.981]
[1750894725900,5.46067012,143.18,143.16,6.981]
[1750894726107,6.9799,143.19,143.16,6.981]
[1750894726410,5.46027723,143.18,143.16,6.981]
[1750894726613,6.9796,143.2,143.16,6.981]
[1750894726916,5.46069441,143.19,143.17,6.9808]
[1750894727111,5.46069441,143.18,143.17,6.9808]
[1750894729714,5.46069441,143.18,143.16,6.9811]
[1750894729910,6.9799,143.19,143.16,6.9811]
[1750894730106,5.46539834,143.18,143.16,6.9811]
[1750894730308,6.9799,143.19,143.16,6.9811]
[1750894730504,5.46537016,143.18,143.16,6.9811]
[1750894730707,6.9799,143.19,143.16,6.9811]
[1750894730911,42.56740422,143.18,143.12,34.64]
[1750894731111,18.83174582,143.17,143.12,34.64]
[1750894731419,18.83174582,143.16,143.12,34.64]
[1750894731612,5.46508294,143.15,143.13,6.9825]
[1750894731812,6.04688809,143.17,143.13,6.9825]
[1750894732012,5.46483316,143.16,143.13,6.9825]
[1750894732212,5.46483316,143.15,143.13,6.9825]
[1750894732413,6.9812,143.17,143.13,6.9825]
[1750894732610,5.46441779,143.16,143.13,6.9825]
[1750894732818,5.46441779,143.15,143.13,6.9825]
[1750894733017,6.9812,143.17,143.13,6.9825]
[1750894733211,12.78368819,143.16,143.13,6.9825]
[1750894733407,5.46442147,143.15,143.13,6.9825]
[1750894733607,6.9812,143.17,143.13,6.9825]
[1750894733818,12.77274483,143.16,143.13,6.9825]
[1750894734019,5.4535901,143.15,143.13,6.9825]
[1750894734319,6.9812,143.17,143.14,6.9823]
[1750894734617,5.45350263,143.16,143.14,6.9823]
[1750894734818,5.45350263,143.15,143.14,6.9823]
[1750894737418,5.45350263,143.15,143.13,6.9826]
[1750894737621,6.9814,143.16,143.13,6.9826]
[1750894737820,5.44894043,143.15,143.13,6.9826]
[1750894738022,6.9814,143.16,143.13,6.9826]
[1750894738225,5.44894043,143.15,143.13,6.9826]
[1750894738419,6.9814,143.16,143.13,6.9826]
[1750894738618,5.44923235,143.15,143.13,6.9826]
[1750894738922,6.9814,143.16,143.13,6.9826]
[1750894739225,5.44923235,143.15,143.13,6.9826]
[1750894739421,6.9814,143.16,143.13,6.9826]
[1750894739723,34.62,143.18,143.12,34.64]
[1750894739927,12.75186892,143.17,143.12,34.64]
[1750894740114,5.44952651,143.16,143.14,6.9819]
[1750894740316,41.6007,143.18,143.14,6.9819]
[1750894740512,12.75267809,143.17,143.14,6.9819]
[1750894740717,5.44987231,143.16,143.14,6.9819]
[1750894741023,41.6007,143.18,143.15,6.9818]
[1750894741326,12.75295344,143.17,143.15,6.9818]
[1750894741622,5.44987231,143.16,143.15,6.9818]
[1750894743627,34.62,143.18,143.16,6.981]
[1750894744024,6.9801,143.19,143.16,6.981]
[1750894744217,5.45217604,143.18,143.16,6.981]
[1750894744425,6.9801,143.19,143.16,6.981]
[1750894744725,5.45229734,143.18,143.16,6.981]
[1750894744927,6.9801,143.19,143.16,6.981]
[1750894745120,5.45159439,143.18,143.16,6.981]
[1750894745324,6.9801,143.19,143.16,6.981]
[1750894745630,5.45175616,143.18,143.16,6.981]
[1750894745824,6.9795,143.2,143.13,4.6482]
[1750894746030,12.7621762,143.19,143.13,7.0424]
[1750894746232,5.45364227,143.18,143.15,6.9814]
[1750894746419,5.45364227,143.17,143.15,6.9814]
[1750894746621,6.9802,143.19,143.15,6.9814]
[1750894746823,5.45352265,143.18,143.15,6.9814]
[1750894747024,5.45352265,143.17,143.16,6.9813]
[1750894747427,6.9802,143.19,143.16,6.9813]
[1750894747626,5.45407372,143.18,143.16,6.9813]
[1750894747829,5.4537875,143.17,143.16,6.9813]
[1750894749227,6.9802,143.19,143.16,6.9813]
[1750894749438,5.47129322,143.18,143.17,6.9806]
[1750894750132,5.47129322,143.18,143.16,6.981]
[1750894750434,5.471145,143.17,143.16,6.981]
[1750894753039,5.471145,143.17,143.13,7.0424]
[1750894753234,5.47138742,143.16,143.12,34.64]
[1750894753436,34.62,143.21,143.12,34.64]
[1750894753629,18.86159975,143.2,143.12,34.64]
[1750894753829,6.9809,143.17,143.13,6.9826]
[1750894754029,5.47165015,143.16,143.13,6.9826]
[1750894754230,5.47206014,143.15,143.12,34.64]
[1750894754539,6.9809,143.17,143.14,6.9821]
[1750894754732,5.47205951,143.16,143.14,6.9821]
[1750894754928,6.9809,143.17,143.14,6.9821]
[1750894755132,5.47205122,143.16,143.14,6.9821]
[1750894755433,6.9809,143.17,143.14,6.9821]
[1750894755630,5.47226002,143.16,143.14,6.9821]
[1750894755829,6.9809,143.17,143.14,6.9821]
[1750894756135,5.47226002,143.16,143.14,6.982]
[1750894756335,34.62,143.21,143.12,34.64]
[1750894756640,18.86799334,143.2,143.17,6.9805]
[1750894756832,5.47303871,143.19,143.17,6.9805]
[1750894757032,5.47303871,143.18,143.17,6.9805]
[1750894759439,5.47303871,143.18,143.16,6.9811]
[1750894759748,6.9794,143.2,143.16,6.9811]
[1750894759749,5.47303871,143.17,143.16,6.9811]
[1750894760336,6.98,143.19,143.16,6.9811]
[1750894760534,5.45922673,143.18,143.16,6.9811]
[1750894760734,5.45922673,143.17,143.16,6.9811]
[1750894762935,6.9796,143.2,143.16,6.9811]
[1750894763233,18.86071275,143.19,143.16,6.9811]
[1750894763429,5.4701989,143.18,143.16,6.9811]
[1750894763633,5.4701989,143.17,143.16,6.9811]
[1750894764641,5.4701989,143.17,143.15,6.9817]
[1750894764844,6.9804,143.18,143.15,6.9817]
[1750894765042,12.45120299,143.17,143.14,6.982]
[1750894765242,5.47020299,143.16,143.14,6.982]
[1750894765443,6.981,143.17,143.14,6.982]
[1750894765741,5.47046465,143.16,143.14,6.982]
[1750894765942,6.981,143.17,143.14,6.982]
[1750894766142,5.47046465,143.16,143.14,6.982]
[1750894766340,6.981,143.17,143.14,6.982]
[1750894766644,5.47050959,143.16,143.14,6.982]
[1750894766847,6.981,143.17,143.14,6.982]
[1750894767039,5.47050959,143.16,143.14,6.982]
[1750894767348,6.981,143.17,143.14,6.982]
[1750894767537,5.47055852,143.16,143.14,6.982]
[1750894767739,6.981,143.17,143.14,6.982]
[1750894767940,6.9806,143.18,143.15,6.9818]
[1750894768141,5.47084617,143.17,143.15,6.9818]
[1750894768338,6.9806,143.18,143.15,6.9818]
[1750894768647,5.47118035,143.17,143.15,6.9818]
[1750894768846,6.9801,143.19,143.16,6.9813]